fUST/lending_fUST_20240708
["ID","MTS","AMOUNT","RATE_DAILY","PERIOD"]
[331440694,1720411840950,-1213.15,0.00082935,120]
[331440695,1720411840959,-1496.21,0.00082935,120]
[331440696,1720411840968,-500.0,0.00082935,120]
[331440697,1720411840978,-792.35,0.00082935,120]
[331440698,1720411840987,-224.60118379,0.00082935,120]
[331440747,1720412755144,-518.93724581,0.00039393,4]
[331440748,1720412755165,-151.0,0.0004,120]
[331440749,1720412755185,-849.55215974,0.00043615,4]
[331440750,1720412833095,-2244.84007704,0.00043615,120]
[331440751,1720412833115,-736.06541575,0.00052866,4]
[331440752,1720412833137,-500.0,0.00057534,120]
[331440753,1720412833157,-269.75703883,0.000618,120]
[331440754,1720412835103,-599.97842447,0.000618,120]
[331440755,1720412838102,-553.78536921,0.000618,120]
[331440756,1720412841096,-1576.47916749,0.000618,120]
[331440757,1720412841116,-500.0,0.00063013,120]
[331440758,1720412841135,-168.36090955,0.00066326,120]
[331440759,1720412842106,-369.38176865,0.00066326,120]
[331440764,1720412971110,-151.0,0.0004,120]
[331440765,1720412971130,-155.42805707,0.00043834,4]
[331440766,1720412971150,-578.81741217,0.00043834,4]
[331440767,1720412972462,155.58300829,0.00043834,4]
[331440768,1720412973713,156.72112003,0.00043834,4]
[331440769,1720413012208,151.0,0.0004,120]
[331440770,1720413012731,151.0,0.0005,120]
[331440771,1720413030002,212.97237932,0.00043834,4]
[331440808,1720413038295,-151.0,0.0006,120]
[331440810,1720413038306,-10000.0,0.0006,30]
[331440812,1720413038316,-3000.0,0.000605,120]
[331440814,1720413038326,-152.0,0.00061,120]
[331440816,1720413038335,-3000.0,0.000615,120]
[331440818,1720413038345,-3000.0,0.000625,120]
[331440820,1720413038354,-3000.0,0.000635,120]
[331440822,1720413038364,-3000.0,0.000645,120]
[331440824,1720413038373,-3000.0,0.000655,120]
[331440826,1720413038383,-2462.2573218,0.00066326,120]
[331440828,1720413038393,-500.0,0.00066496,120]
[331440830,1720413038403,-1505.91,0.00066496,120]
[331440832,1720413038412,-500.0,0.00066496,120]
[331440834,1720413038422,-500.0,0.00066496,120]
[331440836,1720413038432,-500.0,0.00066496,120]
[331440838,1720413038443,-500.0,0.00066497,120]
[331440840,1720413038452,-500.0,0.00066499,120]
[331440842,1720413038464,-500.0,0.00066499,120]
[331440844,1720413038474,-3000.0,0.000665,120]
[331440846,1720413038484,-3000.0,0.000675,120]
[331440848,1720413038494,-500.0,0.00068493,120]
[331440850,1720413038504,-3000.0,0.000685,120]
[331440852,1720413038513,-620.0,0.00069499,120]
[331440854,1720413038523,-500.0,0.00069499,120]
[331440856,1720413038533,-500.0,0.00069499,120]
[331440858,1720413038544,-3000.0,0.000695,120]
[331440860,1720413038554,-153.0,0.00069908,120]
[331440862,1720413038563,-153.0,0.00069909,120]
[331440864,1720413038572,-153.0,0.0006995,120]
[331440866,1720413038582,-153.0,0.00069951,120]
[331440868,1720413038592,-153.0,0.00069991,120]
[331440870,1720413038602,-153.0,0.00069992,120]
[331440872,1720413038612,-1000.0,0.0007,120]
[331440874,1720413038622,-151.0,0.0007,120]
[331440876,1720413038633,-153.0,0.00070032,120]
[331440878,1720413038643,-153.0,0.00070033,120]
[331440880,1720413038653,-500.0,0.00070499,120]
[331440882,1720413038663,-3000.0,0.000705,120]
[331440884,1720413038674,-3000.0,0.00070852,120]
[331440886,1720413038684,-1112.05,0.00071975,120]
[331440887,1720413038695,-500.0,0.00071975,120]
[331440888,1720413038705,-726.32,0.00071975,120]
[331440889,1720413038719,-1371.52,0.00071975,120]
[331440890,1720413038733,-500.0,0.00071975,120]
[331440891,1720413038744,-500.0,0.00071976,120]
[331440892,1720413038755,-1505.91,0.00071976,120]
[331440893,1720413038766,-500.0,0.00071976,120]
[331440894,1720413038776,-500.0,0.00071976,120]
[331440895,1720413038787,-500.0,0.00071976,120]
[331440896,1720413038797,-500.0,0.00071977,120]
[331440897,1720413038807,-500.0,0.00071979,120]
[331440898,1720413038818,-874.89611013,0.00072,120]
[331440899,1720413038828,-500.0,0.00072497,120]
[331440900,1720413038838,-3697.26,0.00072497,120]
[331440901,1720413038849,-500.0,0.00072498,120]
[331440902,1720413038860,-500.0,0.00072498,120]
[331440903,1720413038870,-500.0,0.00072498,120]
[331440904,1720413038881,-500.0,0.00072498,120]
[331440905,1720413038891,-990.02,0.00072498,120]
[331440906,1720413038901,-540.45,0.00072498,120]
[331440907,1720413038911,-500.0,0.00072498,120]
[331440908,1720413038922,-398.42,0.00072498,120]
[331440909,1720413038932,-3194.78,0.00072498,120]
[331440910,1720413038943,-173.99843704,0.00072498,120]
[331440911,1720413038961,-181.05652754,0.00072498,120]
[331440912,1720413038972,-3660.2,0.00072498,120]
[331440913,1720413038982,-500.0,0.00072498,120]
[331440914,1720413038992,-728.24,0.00072498,120]
[331440915,1720413039003,-500.0,0.00072498,120]
[331440916,1720413039014,-2575.72,0.00072498,120]
[331440917,1720413039024,-2000.0,0.000725,120]
[331440918,1720413039035,-2000.0,0.000725,120]
[331440919,1720413039046,-2000.0,0.000725,120]
[331440920,1720413039057,-800.0,0.00073,120]
[331440921,1720413039067,-500.0,0.00073972,120]
[331440923,1720413039077,-2000.0,0.000745,120]
[331440925,1720413039088,-1000.0,0.00075,120]
[331440927,1720413039099,-500.0,0.00075,2]
[331440929,1720413039110,-1000.0,0.00075237,120]
[331440931,1720413039120,-3000.0,0.00075378,120]
[331440933,1720413039131,-454.30674699,0.00075979,120]
[331440935,1720413039141,-18927.78,0.00076479,3]
[331440937,1720413039151,-22713.34,0.00076489,3]
[331440939,1720413039162,-500.0,0.00076499,120]
[331440941,1720413039172,-500.0,0.00076499,120]
[331440943,1720413039182,-500.0,0.00076499,120]
[331440945,1720413039192,-500.0,0.00076499,120]
[331440947,1720413039203,-500.0,0.00076499,120]
[331440949,1720413039217,-500.0,0.00076499,120]
[331440951,1720413039227,-500.0,0.00076499,120]
[331440953,1720413039236,-500.0,0.00076499,120]
[331440955,1720413039247,-500.0,0.00076499,120]
[331440957,1720413039257,-500.0,0.00076499,120]
[331440960,1720413039268,-498.50599538,0.00076499,120]
[331440961,1720413039279,-500.0,0.00076499,120]
[331440964,1720413039289,-500.0,0.00076499,120]
[331440966,1720413039300,-767.92,0.00076499,120]
[331440967,1720413039310,-2000.0,0.000765,120]
[331440969,1720413039320,-2000.0,0.000765,120]
[331440971,1720413039330,-2000.0,0.000765,120]
[331440973,1720413039341,-2000.0,0.000765,120]
[331440974,1720413039351,-2000.0,0.000765,120]
[331440975,1720413039361,-500.0,0.00077447,120]
[331440976,1720413039370,-500.0,0.00077455,120]
[331440977,1720413039379,-1112.05,0.00077455,120]
[331440978,1720413039389,-1505.91,0.00077455,120]
[331440979,1720413039402,-500.0,0.00077455,120]
[331440980,1720413039411,-726.32,0.00077455,120]
[331440981,1720413039422,-1371.52,0.00077455,120]
[331440982,1720413039433,-500.0,0.00077455,120]
[331440983,1720413039444,-500.0,0.00077455,120]
[331440984,1720413039454,-500.0,0.00077455,120]
[331440985,1720413039466,-500.0,0.00077456,120]
[331440987,1720413039476,-500.0,0.00077457,120]
[331440989,1720413039486,-500.0,0.00077458,120]
[331440991,1720413039496,-3000.0,0.000775,120]
[331440997,1720413039608,-332.85843355,0.00077878,2]
[331440998,1720413039619,-1003.79674016,0.00077958,12]
[331440999,1720413039629,-1500.0,0.00077977,120]
[331441000,1720413039640,-3697.26,0.00077977,120]
[331441001,1720413039650,-500.0,0.00077978,120]
[331441002,1720413039660,-500.0,0.00077978,120]
[331441003,1720413039670,-500.0,0.00077978,120]
[331441005,1720413039680,-990.02,0.00077978,120]
[331441006,1720413039689,-540.45,0.00077978,120]
[331441007,1720413039699,-3194.78,0.00077978,120]
[331441008,1720413039711,-3660.2,0.00077978,120]
[331441009,1720413039721,-500.0,0.00077978,120]
[331441010,1720413039731,-728.24,0.00077978,120]
[331441011,1720413039741,-500.0,0.00077978,120]
[331441012,1720413039750,-2575.72,0.00077978,120]
[331441013,1720413039761,-2000.0,0.000785,120]
[331441014,1720413039770,-210.31145092,0.000785,120]
[331441015,1720413039785,-1789.68854908,0.000785,120]
[331441016,1720413039795,-2000.0,0.000785,120]
[331441017,1720413039805,-1735.01145092,0.000785,120]
[331441049,1720413046870,-153.0,0.00069876,120]
[331441051,1720413046879,-300.0,0.00069999,120]
[331441089,1720413950181,-257.7502026,0.0003624,2]
[331441090,1720413950200,-439.479534,0.00038,10]
[331441091,1720413950220,-155.16712528,0.00040278,5]
[331441092,1720413950238,-171.25081313,0.00042229,4]
[331441093,1720413950258,-171.25081313,0.00042398,4]
[331441094,1720413950283,-282.43178333,0.00043615,4]
[331441095,1720414027112,-162.95005177,0.00043615,20]
[331441096,1720414027132,-198.4253475,0.00052866,4]
[331441097,1720414027228,-161.226754,0.0005415,2]
[331441098,1720414027248,-309.39608829,0.0006,120]
[331441099,1720414036105,-600.0,0.00043615,4]
[331441100,1720414045090,-1689.07700962,0.00043615,4]
[331441101,1720414045110,-154.48248368,0.00043834,4]
[331441102,1720414045130,-533.42602062,0.00052866,4]
[331441103,1720414045150,-600.0,0.00053238,2]
[331441104,1720414045170,-790.58420389,0.0006,120]
[331441105,1720414045191,-2075.38654394,0.0006,120]
[331441119,1720414153124,-154.48248368,0.00043834,4]
[331441120,1720414180236,155.06564544,0.00053131,4]
[331441121,1720414185613,5795.31892834,0.00043834,4]
[331441122,1720414196425,299.92681266,0.00053131,4]
[331441123,1720414197593,284.22582068,0.00043834,3]
[331441124,1720414209240,1030.24323206,0.00043834,20]
[331441125,1720414209268,1177.6723061,0.00043834,20]
[331441126,1720414211593,200.0,0.0001,10]
[331441305,1720414238499,-199.48958882,0.00038795,2]
[331441306,1720414238512,-300.0,0.00038795,2]
[331441307,1720414238523,-510.20601581,0.00038795,2]
[331441308,1720414238535,-288.77894306,0.00038795,2]
[331441309,1720414238546,-317.93960713,0.00038795,2]
[331441310,1720414238558,-283.68646285,0.00038795,2]
[331441311,1720414238569,-581.27684707,0.00038795,2]
[331441312,1720414238579,-153.14792914,0.00038795,2]
[331441313,1720414238590,-1771.2791114,0.00053131,4]
[331441317,1720414238600,-664.85262771,0.0006,120]
[331441318,1720414238741,-682.10612986,0.0006,12]
[331441319,1720414238750,-1393.76767121,0.0006,120]
[331441320,1720414238760,-3000.0,0.000618,120]
[331441321,1720414238771,-175.2,0.00065753,120]
[331441322,1720414238781,-3000.0,0.00066532,120]
[331441323,1720414238791,-153.0,0.00069192,120]
[331441324,1720414238801,-153.0,0.00069193,120]
[331441325,1720414238811,-153.0,0.00069233,120]
[331441326,1720414238821,-153.0,0.00069234,120]
[331441327,1720414238831,-153.0,0.00069272,120]
[331441328,1720414238840,-153.0,0.00069273,120]
[331441329,1720414238850,-153.0,0.00069318,120]
[331441330,1720414238860,-153.0,0.00069318,120]
[331441331,1720414238870,-18000.0,0.000695,120]
[331441332,1720414238880,-182.4689827,0.00069997,120]
[331441333,1720414238889,-180.0,0.00069997,120]
[331441334,1720414238899,-500.0,0.00069997,120]
[331441335,1720414238908,-500.0,0.00069997,120]
[331441336,1720414238919,-458.0,0.00069997,120]
[331441337,1720414238928,-500.0,0.00069998,120]
[331441338,1720414238938,-1069.61129915,0.00069998,120]
[331441339,1720414238948,-500.0,0.00069998,120]
[331441340,1720414238959,-500.0,0.00069998,120]
[331441341,1720414238970,-500.0,0.00069998,120]
[331441342,1720414238980,-521.5,0.00069998,120]
[331441343,1720414238990,-500.0,0.00069998,120]
[331441344,1720414239000,-3697.26,0.00069998,120]
[331441345,1720414239010,-500.0,0.00069998,120]
[331441346,1720414239020,-500.0,0.00069998,120]
[331441347,1720414239030,-500.0,0.00069998,120]
[331441348,1720414239040,-505.0495452,0.00069999,120]
[331441349,1720414239050,-500.0,0.00069999,120]
[331441350,1720414239060,-500.0,0.00069999,120]
[331441351,1720414239070,-767.92,0.00069999,120]
[331441352,1720414239080,-1443.17,0.00069999,120]
[331441353,1720414239090,-500.0,0.00069999,120]
[331441354,1720414239099,-500.0,0.00069999,120]
[331441355,1720414239109,-500.0,0.00069999,120]
[331441356,1720414239123,-500.0,0.00070499,120]
[331441357,1720414239133,-592.639643,0.00070499,120]
[331441358,1720414239142,-500.0,0.00070499,120]
[331441359,1720414239152,-500.0,0.00070499,120]
[331441360,1720414239162,-500.0,0.00070499,120]
[331441361,1720414239172,-500.0,0.00070499,120]
[331441362,1720414239182,-500.0,0.00070499,120]
[331441363,1720414239192,-500.0,0.00070499,10]
[331441364,1720414239201,-214.18582089,0.00070499,120]
[331441365,1720414239213,-500.0,0.00070499,120]
[331441366,1720414239223,-500.0,0.00070499,120]
[331441367,1720414239233,-1112.05,0.00071263,120]
[331441368,1720414239244,-1371.52,0.00071263,120]
[331441369,1720414239254,-500.0,0.00071263,120]
[331441370,1720414239264,-500.0,0.00071263,120]
[331441371,1720414239274,-859.39,0.00071263,120]
[331441372,1720414239284,-3000.0,0.00071264,120]
[331441373,1720414239294,-500.0,0.00072498,120]
[331441374,1720414239304,-500.0,0.00072498,120]
[331441375,1720414239314,-542.36,0.00072499,120]
[331441376,1720414239325,-1000.0,0.00072738,120]
[331441377,1720414239335,-10015.55,0.00074,120]
[331441378,1720414239345,-26581.06,0.0007449,3]
[331441379,1720414239355,-2000.0,0.000745,120]
[331441380,1720414239365,-27000.0,0.000745,120]
[331441381,1720414239379,-332.85843355,0.000749,2]
[331441382,1720414239389,-10319.7018282,0.0007498,11]
[331441383,1720414239399,-521.5,0.00074989,120]
[331441384,1720414239409,-10319.7018282,0.0007499,11]
[331441385,1720414239418,-521.5,0.00074999,120]
[331441386,1720414239428,-20313.69644035,0.00075,30]
[331441387,1720414239438,-20000.0,0.00075,30]
[331441388,1720414239449,-1674.89611013,0.00075,120]
[331441389,1720414239460,-154.609012,0.00075,120]
[331441390,1720414239477,-521.5,0.00075477,120]
[331441391,1720414239487,-765.22,0.00075478,120]
[331441392,1720414239497,-500.0,0.00075478,120]
[331441393,1720414239507,-500.0,0.00075478,120]
[331441394,1720414239516,-1036.47,0.00075478,120]
[331441395,1720414239526,-454.30674699,0.00075478,120]
[331441396,1720414239535,-565.94,0.00075478,120]
[331441397,1720414239544,-500.0,0.00075478,120]
[331441398,1720414239554,-500.0,0.00075478,120]
[331441399,1720414239563,-3334.7,0.00075478,120]
[331441400,1720414239572,-500.0,0.00075478,120]
[331441401,1720414239582,-500.0,0.00075478,120]
[331441402,1720414239591,-500.0,0.00075478,120]
[331441403,1720414239600,-296.84,0.00075478,120]
[331441404,1720414239609,-173.99843704,0.00075478,120]
[331441405,1720414239618,-471.53863611,0.00075478,120]
[331441406,1720414239628,-181.05652754,0.00075478,120]
[331441407,1720414239637,-500.0,0.00075478,120]
[331441408,1720414239646,-3832.84,0.00075478,120]
[331441409,1720414239656,-500.0,0.00075478,120]
[331441410,1720414239665,-762.59,0.00075478,120]
[331441411,1720414239674,-1500.0,0.00075478,120]
[331441412,1720414239683,-3697.26,0.00075478,120]
[331441413,1720414239692,-500.0,0.00075478,120]
[331441414,1720414239701,-629.16860485,0.00075478,120]
[331441415,1720414239711,-2575.72,0.00075478,120]
[331441416,1720414239722,-500.0,0.00075478,120]
[331441417,1720414239732,-500.0,0.00075478,120]
[331441418,1720414239742,-500.0,0.00075478,120]
[331441419,1720414239752,-500.0,0.00075479,120]
[331441420,1720414239762,-500.0,0.00075479,120]
[331441421,1720414239772,-767.92,0.00075479,120]
[331441422,1720414239781,-1443.17,0.00075479,120]
[331441423,1720414239791,-500.0,0.00075479,120]
[331441424,1720414239800,-500.0,0.00075479,120]
[331441425,1720414239809,-151.0,0.00075479,120]
[331441426,1720414239819,-500.0,0.00075479,120]
[331441427,1720414239829,-500.0,0.00075979,120]
[331441429,1720414239838,-500.5210734,0.00075979,120]
[331441431,1720414239848,-500.0,0.00075979,120]
[331441432,1720414239857,-500.0,0.00075979,120]
[331441433,1720414239867,-498.50599538,0.00075979,120]
[331441434,1720414239876,-500.0,0.00075979,120]
[331441435,1720414239886,-500.0,0.00075979,10]
[331441436,1720414239895,-500.0,0.00075979,120]
[331441437,1720414239905,-3000.0,0.00075995,120]
[331441438,1720414239915,-1000.0,0.00076,120]
[331441439,1720414239925,-1000.0,0.00076,120]
[331441441,1720414239935,-10319.7018282,0.00076489,11]
[331441443,1720414239945,-500.0,0.00076498,120]
[331441444,1720414239955,-2067.47,0.00076499,120]
[331441447,1720414239964,-593.67,0.00076499,120]
[331441448,1720414239974,-500.0,0.00076499,120]
[331441451,1720414239983,-521.5,0.00076499,120]
[331441453,1720414239992,-9884.11238842,0.000765,120]
[331441455,1720414240003,-151.0,0.000765,120]
[331441457,1720414240012,-1289.480774,0.000765,120]
[331441458,1720414240022,-151.0,0.000765,120]
[331441460,1720414240031,-1289.480774,0.000765,120]
[331441463,1720414240042,-527.07678462,0.000766,40]
[331441464,1720414240051,-827.2702618,0.00076742,120]
[331441472,1720414240110,-284.7797382,0.00076742,120]
[331441474,1720414240121,-1371.52,0.00076742,120]
[331441476,1720414240131,-500.0,0.00076742,120]
[331441478,1720414240145,-859.39,0.00076742,120]
[331441480,1720414240155,-765.22,0.00077977,120]
[331441482,1720414240164,-500.0,0.00077978,120]
[331441484,1720414240176,-500.0,0.00077978,120]
[331441486,1720414240185,-151.0,0.00078,120]
[331441488,1720414240195,-154.791805,0.00078,120]
[331441490,1720414240205,-154.030342,0.00078,120]
[331441492,1720414240215,-515.366226,0.00078,120]
[331441495,1720414240232,-515.366226,0.00078,120]
[331441497,1720414240242,-332.85843353,0.00078015,2]
[331441499,1720414240252,-2000.0,0.00078217,120]
[331441501,1720414240262,-500.0,0.00078979,120]
[331441503,1720414240271,-521.5,0.00078989,120]
[331441504,1720414240280,-501.83399043,0.000795,120]
[331441506,1720414240290,-635.94194302,0.00079889,120]
[331441509,1720414240299,-500.0,0.00079889,120]
[331441511,1720414240309,-151.0,0.0007989,120]
[331441513,1720414240318,-20639.4036563,0.0007989,12]
[331441515,1720414240327,-1289.480774,0.0007989,120]
[331441516,1720414240337,-151.0,0.0007989,120]
[331441518,1720414240346,-1289.480774,0.0007989,120]
[331441521,1720414240358,-2000.0,0.0007989,120]
[331441523,1720414240373,-88888.0,0.000799,120]
[331441525,1720414240382,-151.0,0.000799,120]
[331441527,1720414240392,-1289.480774,0.000799,120]
[331441529,1720414240401,-151.0,0.000799,120]
[331441531,1720414240411,-1289.480774,0.000799,120]
[331441533,1720414240420,-500.0,0.00079939,120]
[331441535,1720414240429,-765.22,0.00079969,120]
[331441537,1720414240439,-151.0,0.0007998,120]
[331441539,1720414240448,-151.0,0.0007998,7]
[331441541,1720414240460,-521.5,0.00079989,120]
[331441543,1720414240471,-10319.7018282,0.0007999,12]
[331441545,1720414240480,-201.839644,0.0007999,120]
[331441547,1720414240490,-151.0,0.0007999,120]
[331441549,1720414240499,-151.0,0.0007999,120]
[331441551,1720414240508,-151.0,0.0007999,7]
[331441553,1720414240517,-151.0,0.0007999,120]
[331441555,1720414240527,-515.366226,0.0007999,120]
[331441557,1720414240536,-515.366226,0.0007999,120]
[331441558,1720414240545,-151.0,0.0007999,120]
[331441559,1720414240554,-41278.8073126,0.0007999,12]
[331441560,1720414240563,-1289.480774,0.0007999,120]
[331441561,1720414240572,-151.0,0.0007999,120]
[331441562,1720414240581,-1289.480774,0.0007999,120]
[331441563,1720414240590,-699.60952223,0.00079999,120]
[331441648,1720414257697,742.21421592,0.00043834,4]
[331441656,1720415130113,-151.0,0.0004,120]
[331441657,1720415130136,-154.48248368,0.00041999,4]
[331441658,1720415130157,-154.48248368,0.00041999,4]
[331441659,1720415130182,-519.67034824,0.00043615,4]
[331441663,1720415232114,-1054.65620403,0.00043615,2]
[331441664,1720415238094,-400.10418241,0.00043615,2]
[331441665,1720415238114,-404.66552782,0.00052866,4]
[331441666,1720415238132,-151.0,0.00056658,120]
[331441667,1720415238151,-152.0,0.00061,120]
[331441668,1720415238172,-195.04933332,0.000618,120]
[331441669,1720415253095,-2728.85024072,0.000618,120]
[331441744,1720415438739,-6000.0,0.000615,120]
[331441745,1720415438753,-76.10042596,0.000618,120]
[331441746,1720415438764,-3000.0,0.00066642,120]
[331441747,1720415438773,-153.0,0.00068651,120]
[331441748,1720415438783,-500.0,0.00069998,120]
[331441749,1720415438794,-500.0,0.00069998,120]
[331441750,1720415438803,-500.0,0.00069998,120]
[331441751,1720415438813,-500.0,0.00069998,120]
[331441752,1720415438824,-1000.0,0.00069998,120]
[331441753,1720415438834,-503.98,0.00069998,120]
[331441754,1720415438843,-500.0,0.00069998,10]
[331441755,1720415438853,-703.93,0.00069998,120]
[331441756,1720415438862,-960.16,0.00069998,120]
[331441757,1720415438872,-539.13,0.00069998,120]
[331441758,1720415438882,-500.0,0.00069998,120]
[331441759,1720415438891,-500.0,0.00069998,120]
[331441760,1720415438901,-500.0,0.00069998,120]
[331441761,1720415438921,-2006.4,0.00069998,120]
[331441762,1720415438933,-1385.65,0.00069998,120]
[331441763,1720415438944,-500.0,0.00069998,120]
[331441764,1720415438954,-500.0,0.00069998,120]
[331441765,1720415438964,-500.0,0.00069998,120]
[331441766,1720415438974,-500.0,0.00069998,120]
[331441767,1720415438985,-500.0,0.00069998,120]
[331441768,1720415438995,-500.0,0.00069998,120]
[331441769,1720415439005,-500.0,0.00069998,120]
[331441770,1720415439015,-500.0,0.00069998,120]
[331441771,1720415439026,-568.93,0.00069998,120]
[331441772,1720415439037,-500.0,0.00069998,120]
[331441773,1720415439048,-500.0,0.00069999,120]
[331441774,1720415439059,-514.23803187,0.00069999,120]
[331441775,1720415439070,-500.0,0.00069999,120]
[331441776,1720415439080,-3000.0,0.00071484,120]
[331441777,1720415439091,-151.0,0.00073315,120]
[331441778,1720415439101,-500.0,0.00073896,120]
[331441779,1720415439112,-3389.15,0.00073896,120]
[331441780,1720415439123,-500.0,0.00073897,120]
[331441781,1720415439134,-500.0,0.00073897,120]
[331441782,1720415439144,-500.0,0.00073897,120]
[331441783,1720415439155,-500.0,0.00073897,120]
[331441784,1720415439165,-500.0,0.00073897,120]
[331441785,1720415439177,-500.0,0.00073897,120]
[331441786,1720415439189,-500.0,0.00073897,120]
[331441787,1720415439201,-500.0,0.00073897,120]
[331441788,1720415439211,-500.0,0.00073897,120]
[331441789,1720415439221,-545.8,0.00073897,120]
[331441790,1720415439232,-500.0,0.00073897,120]
[331441791,1720415439243,-500.0,0.00073897,120]
[331441792,1720415439253,-500.0,0.00073897,120]
[331441793,1720415439264,-500.0,0.00073897,120]
[331441795,1720415439274,-500.0,0.00073897,120]
[331441796,1720415439285,-500.0,0.00073897,120]
[331441798,1720415439295,-500.0,0.00073897,120]
[331441800,1720415439306,-500.0,0.00073897,120]
[331441802,1720415439316,-500.0,0.00073897,120]
[331441804,1720415439327,-500.0,0.00073897,120]
[331441807,1720415439346,-1031.25,0.00073899,120]
[331441809,1720415439362,-1314.38,0.00073899,120]
[331441811,1720415439377,-500.0,0.00073899,120]
[331441814,1720415439391,-823.58,0.00073899,120]
[331441816,1720415439406,-500.0,0.00073899,120]
[331441819,1720415439419,-500.0,0.00074958,120]
[331441821,1720415439432,-500.0,0.00074958,120]
[331441823,1720415439443,-500.0,0.00074958,120]
[331441825,1720415439456,-733.34,0.00074958,120]
[331441826,1720415439470,-500.0,0.00074958,120]
[331441827,1720415439482,-500.0,0.00074958,120]
[331441829,1720415439496,-500.0,0.00074958,120]
[331441831,1720415439510,-500.0,0.00074958,120]
[331441833,1720415439523,-500.0,0.00074958,120]
[331441835,1720415439535,-500.0,0.00074958,120]
[331441837,1720415439549,-532.65,0.00074958,120]
[331441839,1720415439562,-993.28,0.00074958,120]
[331441841,1720415439574,-542.36,0.00074958,120]
[331441844,1720415439589,-3195.76,0.00074958,120]
[331441846,1720415439601,-500.0,0.00074958,120]
[331441848,1720415439614,-500.0,0.00074958,120]
[331441850,1720415439627,-500.0,0.00074958,120]
[331441853,1720415439639,-500.0,0.00074958,120]
[331441855,1720415439651,-500.0,0.00074958,120]
[331441857,1720415439664,-500.0,0.00074958,120]
[331441859,1720415439679,-500.0,0.00074958,120]
[331441862,1720415439694,-500.0,0.00074958,120]
[331441864,1720415439705,-351.33699184,0.00074958,120]
[331441866,1720415439720,-500.0,0.00074958,120]
[331441868,1720415439733,-3673.14,0.00074958,120]
[331441871,1720415439746,-500.0,0.00074958,120]
[331441873,1720415439763,-500.0,0.00074958,120]
[331441875,1720415439774,-730.81,0.00074958,120]
[331441877,1720415439786,-500.0,0.00074958,120]
[331441879,1720415439798,-500.0,0.00074958,120]
[331441881,1720415439809,-1236.24,0.00074958,120]
[331441884,1720415439820,-2468.4,0.00074958,120]
[331441886,1720415439832,-500.0,0.00074958,120]
[331441888,1720415439845,-502.66318734,0.00074958,120]
[331441890,1720415439857,-500.0,0.00074989,120]
[331441892,1720415439870,-500.0,0.00074999,120]
[331441895,1720415439882,-1200.0,0.00075,120]
[331441897,1720415439893,-1000.0,0.00075,120]
[331441899,1720415439908,-1000.0,0.00075,120]
[331441901,1720415439920,-584.72,0.00075477,120]
[331441904,1720415439932,-500.0,0.00075478,120]
[331441906,1720415439944,-500.0,0.00075478,120]
[331441908,1720415439960,-500.0,0.00075478,120]
[331441911,1720415439974,-500.00659492,0.00075478,120]
[331441913,1720415439987,-1000.0,0.00075478,120]
[331441915,1720415440000,-503.98,0.00075478,120]